bitfinex/quotes_SOLUSD_20240813
["timestamp","ask_amount","ask_price","bid_price","bid_amount"]
[1723543357236,6.8961,145.01,144.99,45.12549]
[1723543357674,6.8961,145.01,144.99,0.12549]
[1723543358070,6.8965,145.0,144.99,0.12549]
[1723543358257,32.05,145.02,144.98,45.0]
[1723543358582,32.05,145.02,144.97,45.12549]
[1723543358755,6.8971,144.99,144.97,45.12549]
[1723543359673,34.76432502,145.04,144.97,45.12549]
[1723543359861,17.2353,145.06,144.99,6.8969]
[1723543359862,6.8952,145.03,144.99,6.8969]
[1723543360065,6.8952,145.03,145.0,45.0]
[1723543360277,6.8956,145.02,145.0,45.0]
[1723543361169,6.8956,145.02,144.99,45.12549]
[1723543361373,49.2853,145.06,144.99,45.12549]
[1723543361682,6.8956,145.02,144.99,46.50469583]
[1723543361878,49.2895,145.02,144.96,6.6148]
[1723543362093,6.8976,144.98,144.96,6.6148]
[1723543362257,0.81962878,145.01,144.96,6.6148]
[1723543362583,20.0,145.01,144.96,6.6148]
[1723543363257,6.897,144.99,144.97,45.0]
[1723543363455,6.8975,144.98,144.97,45.12549]
[1723543363762,6.8975,144.98,144.97,45.0]
[1723543363964,6.8979,144.97,144.96,45.12549]
[1723543364164,6.8979,144.97,144.96,45.0]
[1723543364759,20.0,145.01,144.98,6.8971]
[1723543365077,26.896,145.01,144.99,45.12549]
[1723543365275,20.0,145.01,144.99,45.12549]
[1723543365466,6.8957,145.02,144.99,45.12549]
[1723543367093,6.8957,145.02,144.99,52.02239]
[1723543367266,13.55151238,145.08,145.02,0.12549]
[1723543367455,6.8944,145.05,145.02,45.50196]
[1723543367764,6.8946,145.04,145.02,45.37647]
[1723543368157,6.8943,145.05,145.02,45.37647]
[1723543368389,6.8936,145.07,145.02,52.27197]
[1723543368766,6.8936,145.07,145.02,52.76816237]
[1723543369163,6.8938,145.06,145.02,52.27197]
[1723543369359,32.05,145.08,145.02,45.37647]
[1723543369765,20.0,145.07,145.02,45.37647]
[1723543369967,6.8949,145.04,145.02,45.0]
[1723543370266,6.8943,145.05,145.02,45.0]
[1723543370768,6.8937,145.06,145.03,45.0]
[1723543371389,6.8942,145.05,145.03,45.0]
[1723543371568,6.8938,145.06,145.03,0.12549]
[1723543371774,6.8938,145.06,145.03,0.50196]
[1723543372773,6.8938,145.06,145.03,0.37647]
[1723543372774,6.8937,145.06,145.03,0.37647]
[1723543373171,6.8942,145.05,145.03,0.25098]
[1723543373376,6.8946,145.04,145.02,45.0]
[1723543373598,52.05,145.07,145.03,0.12549]
[1723543373898,20.0,145.07,145.03,0.12549]
[1723543374103,6.8939,145.06,145.03,0.12549]
[1723543374396,6.8939,145.06,145.03,0.50196]
[1723543375767,26.8934,145.07,145.03,7.39696]
[1723543375994,26.8934,145.07,145.05,0.12549]
[1723543376203,26.8934,145.07,145.05,0.25098]
[1723543377400,26.8934,145.07,145.01,23.3275]
[1723543377401,6.8939,145.06,145.01,23.3275]
[1723543377710,6.8939,145.06,145.02,6.8953]
[1723543378008,0.8200388,145.1,145.03,17.2369]
[1723543378173,7.7122388,145.1,145.06,6.8935]
[1723543378498,0.8200388,145.1,145.05,17.2351]
[1723543378706,6.8928,145.08,145.06,45.50196]
[1723543378900,0.8200388,145.1,145.03,7.02049]
[1723543378901,6.8933,145.07,145.03,7.02049]
[1723543379084,6.8928,145.08,145.05,0.12549]
[1723543380995,32.05,145.08,145.01,12.9836]
[1723543381188,6.8945,145.05,145.01,6.0877]
[1723543381379,6.8947,145.04,145.01,6.0877]
[1723543381879,6.8963,145.01,144.97,6.8979]
[1723543382101,6.8966,145.0,144.96,46.2107]
[1723543382403,32.05,145.04,144.96,46.2107]
[1723543382404,38.9449,145.04,144.98,17.2429]
[1723543382588,6.896,145.01,144.97,6.8978]
[1723543382897,32.05,145.02,144.96,22.0673]
[1723543383406,6.8967,145.0,144.96,28.9655]
[1723543383574,6.8963,145.01,144.97,6.8975]
[1723543383899,6.8961,145.01,144.97,6.8975]
[1723543384297,6.8961,145.01,144.98,45.0]
[1723543384697,6.8966,145.0,144.96,22.0673]
[1723543385768,32.05,145.02,144.96,22.0673]
[1723543385769,6.8978,144.98,144.96,6.6138]
[1723543385969,32.05,145.0,144.93,6.8994]
[1723543386196,32.05,145.0,144.92,40.0548]
[1723543386197,6.8985,144.96,144.92,40.0548]
[1723543386498,6.8985,144.96,144.92,23.577]
[1723543387574,6.8985,144.96,144.93,45.0]
[1723543387791,32.05,144.98,144.93,45.0]
[1723543388110,6.898,144.97,144.93,45.0]
[1723543388296,32.05,144.98,144.89,33.7314]
[1723543388481,6.8995,144.94,144.89,40.6327]
[1723543388675,6.8995,144.94,144.9,6.9012]
[1723543389097,6.8995,144.94,144.88,6.6281]
[1723543389098,0.81962878,144.93,144.88,6.6281]
[1723543389304,6.9006,144.92,144.88,13.5303]
[1723543389471,6.9,144.93,144.89,6.9017]
[1723543389674,6.9,144.93,144.88,30.7855]
[1723543389876,6.9,144.93,144.89,6.9017]
[1723543390172,32.05,144.94,144.9,17.2524]
[1723543390374,32.05,144.97,144.91,1.37997869]
[1723543390604,20.0,144.96,144.94,6.899]
[1723543391186,20.0,144.97,144.94,6.899]
[1723543391387,20.0,144.97,144.95,45.0]
[1723543391902,32.05,145.01,144.95,45.0]
[1723543392113,6.898,144.97,144.95,45.0]
[1723543392284,6.898,144.97,144.94,45.25098]
[1723543392610,6.8985,144.96,144.94,45.25098]
[1723543392780,6.898,144.97,144.94,0.12549]
[1723543393093,49.2929,144.99,144.94,0.12549]
[1723543393298,6.8997,144.94,144.91,16.2048]
[1723543393608,6.8997,144.94,144.92,45.0]
[1723543394119,6.9007,144.92,144.87,21.9885]
[1723543394404,18.06522878,144.97,144.87,15.086]
[1723543394405,6.9011,144.91,144.87,15.086]
[1723543395109,32.05,144.91,144.83,39.5318]
[1723543395402,32.05,144.89,144.83,39.5318]
[1723543395579,32.05,144.87,144.8,17.2645]
[1723543395774,6.9041,144.85,144.8,24.1702]
[1723543395977,6.9041,144.85,144.81,6.9055]
[1723543396180,6.9041,144.85,144.79,22.2711]
[1723543396181,20.0,144.9,144.82,17.2624]
[1723543396406,32.05,144.89,144.82,17.2624]
[1723543396607,6.9032,144.86,144.82,24.1672]
[1723543396811,32.05,144.89,144.79,56.8021]
[1723543396812,32.05,144.87,144.79,39.5367]
[1723543397119,38.9538,144.85,144.79,39.5367]
[1723543397481,20.0,144.86,144.82,6.9049]
[1723543397712,20.0,144.88,144.82,6.9049]
[1723543398014,40.12,144.87,144.81,17.2635]
[1723543398188,20.0,144.86,144.82,45.0]
[1723543398390,20.0,144.86,144.79,22.2711]
[1723543398391,6.9045,144.84,144.81,45.0]
[1723543398608,6.9037,144.85,144.8,45.0]
[1723543398907,26.9033,144.86,144.8,62.2646]
[1723543399096,26.9033,144.86,144.81,6.9054]
[1723543399297,26.9033,144.86,144.82,45.0]
[1723543399705,20.0,144.86,144.83,0.25098]
[1723543399882,40.12,144.89,144.82,45.0]
[1723543399883,20.0,144.88,144.82,45.0]
[1723543400819,6.9038,144.85,144.82,45.0]
[1723543401211,6.9043,144.84,144.81,45.0]
[1723543401395,40.12,144.87,144.81,45.0]
[1723543401589,6.9037,144.85,144.81,51.9055]
[1723543401898,6.9043,144.84,144.81,45.0]
[1723543402698,6.9052,144.82,144.79,22.2711]
[1723543403493,6.9048,144.83,144.79,22.2711]
[1723543404097,40.12,144.83,144.77,17.268]
[1723543404318,6.9061,144.8,144.76,6.9076]
[1723543404506,6.9067,144.79,144.75,28.9309]
[1723543404711,40.12,144.81,144.75,6.5264]
[1723543405021,40.12,144.81,144.75,13.4348]
[1723543405196,35.8758,144.88,144.81,6.9055]
[1723543405403,6.904,144.85,144.8,24.1705]
[1723543405802,20.0,144.84,144.82,6.9051]
[1723543406020,20.0,144.84,144.81,6.9054]
[1723543406196,20.0,144.87,144.78,15.6749]
[1723543406396,6.9048,144.83,144.79,45.37647]
[1723543406596,6.9048,144.83,144.8,0.12549]
[1723543407719,6.905,144.83,144.79,45.37647]
[1723543407922,6.9052,144.82,144.79,45.25098]
[1723543408424,57.3807,144.84,144.75,6.5264]
[1723543408626,6.9062,144.8,144.76,45.12549]
[1723543408824,6.907,144.78,144.74,24.1803]
[1723543409118,6.907,144.78,144.74,17.2715]
[1723543409326,6.9069,144.79,144.74,24.18]
[1723543409501,6.907,144.78,144.74,24.18]
[1723543409835,7.72722878,144.77,144.72,6.9095]
[1723543410025,6.9076,144.77,144.72,6.9095]
[1723543410406,6.9076,144.77,144.73,6.9094]
[1723543411098,6.9076,144.77,144.72,6.9097]
[1723543411327,6.9085,144.75,144.71,30.3897]
[1723543411625,6.909,144.74,144.71,23.4795]
[1723543411798,40.12,144.76,144.71,17.2751]
[1723543411996,6.9075,144.77,144.73,6.9093]
[1723543412230,20.0,144.76,144.73,6.9093]
[1723543412431,26.908,144.76,144.72,6.9098]
[1723543413127,6.9091,144.74,144.71,17.2751]
[1723543413718,6.9086,144.75,144.71,24.1853]
[1723543413928,20.0,144.76,144.7,0.25098]
[1723543414104,6.9069,144.79,144.73,17.2732]
[1723543414301,20.0,144.78,144.75,6.9081]
[1723543414505,26.907,144.78,144.74,7.03419]
[1723543414729,6.9066,144.79,144.75,6.9084]
[1723543414937,6.9066,144.79,144.75,51.9084]
[1723543415743,40.12,144.79,144.75,45.0]
[1723543416026,40.12,144.79,144.72,7.03519]
[1723543416027,6.9079,144.76,144.72,7.03519]
[1723543416226,6.9079,144.76,144.73,45.0]
[1723543416602,6.9075,144.77,144.74,0.12549]
[1723543416803,56.7149,144.81,144.74,7.15948]
[1723543417117,6.9067,144.79,144.75,51.9084]
[1723543417316,26.907,144.78,144.74,7.15968]
[1723543417519,26.907,144.78,144.75,45.0]
[1723543418229,20.0,144.78,144.76,7.15878]
[1723543418408,6.9062,144.8,144.77,45.0]
[1723543418409,20.0,144.79,144.77,45.0]
[1723543418828,6.9074,144.78,144.75,0.12549]
[1723543419038,6.9074,144.78,144.75,45.37647]
[1723543420127,6.9066,144.79,144.75,52.28477]
[1723543420812,6.907,144.78,144.75,45.37647]
[1723543421421,6.9067,144.79,144.75,52.28487]
[1723543421933,20.0,144.81,144.78,6.9067]
[1723543422123,6.9068,144.79,144.76,0.25098]
[1723543423017,6.9068,144.79,144.76,0.12549]
[1723543423345,6.907,144.78,144.75,45.25098]
[1723543423835,32.12,144.78,144.75,0.12549]
[1723543424042,32.12,144.78,144.7,30.5582]
[1723543424043,6.9089,144.74,144.7,30.5582]
[1723543424719,6.9086,144.75,144.71,6.9103]
[1723543425018,6.9081,144.76,144.72,6.9098]
[1723543425218,6.9084,144.75,144.73,0.12549]
[1723543425532,6.9084,144.75,144.73,45.12549]
[1723543425836,32.12,144.78,144.74,6.9088]
[1723543426037,6.9065,144.79,144.75,45.37647]
[1723543426242,20.0,144.81,144.76,18.65121147]
[1723543426548,6.906,144.81,144.77,51.9074]
[1723543426718,6.906,144.8,144.77,45.0]
[1723543426913,6.9067,144.79,144.77,45.0]
[1723543427118,6.906,144.8,144.77,45.0]
[1723543427316,32.12,144.82,144.77,45.0]
[1723543427544,6.9064,144.8,144.77,45.0]
[1723543428145,6.9065,144.79,144.77,45.0]
[1723543428316,49.3836,144.82,144.75,0.37647]
[1723543428642,49.3836,144.82,144.73,24.1814]
[1723543428643,6.9078,144.77,144.73,24.1814]
[1723543428851,6.9083,144.76,144.74,0.25098]
[1723543429643,6.9076,144.77,144.74,0.25098]
[1723543430140,6.9076,144.77,144.74,45.25098]
[1723543431343,6.9081,144.76,144.74,45.25098]
[1723543431516,6.9081,144.76,144.74,0.25098]
[1723543432016,6.9087,144.75,144.71,6.9103]
[1723543432222,6.9086,144.75,144.71,6.9103]
[1723543432928,6.909,144.74,144.7,13.282]
[1723543433843,32.12,144.74,144.69,16.6572]
[1723543434051,6.9107,144.71,144.67,6.9119]
[1723543434414,39.03,144.72,144.68,6.9117]
[1723543435147,32.12,144.74,144.66,6.3149]
[1723543435323,32.12,144.76,144.69,6.9113]
[1723543435639,32.12,144.74,144.67,17.2798]
[1723543435841,6.9102,144.72,144.68,6.9116]
[1723543436025,20.0,144.73,144.67,17.2798]
[1723543436026,6.9095,144.73,144.69,6.9113]
[1723543436221,32.12,144.74,144.67,17.2798]
[1723543436446,6.9099,144.72,144.68,51.9116]
[1723543436647,6.9104,144.71,144.68,45.0]
[1723543436942,39.029,144.74,144.69,17.40349]
[1723543437121,20.0,144.73,144.7,45.12549]
[1723543437437,20.0,144.73,144.69,0.12549]
[1723543437740,6.9102,144.72,144.69,0.12549]
[1723543438315,6.9102,144.72,144.66,17.2809]
[1723543438316,32.12,144.72,144.66,17.2809]
[1723543438534,26.9106,144.71,144.67,6.9119]
[1723543438838,0.81962878,144.74,144.68,17.2791]
[1723543439139,20.81962878,144.75,144.68,17.2791]
[1723543439437,6.9097,144.73,144.69,6.9112]
[1723543439648,6.9089,144.74,144.7,7.16168]
[1723543439830,20.0,144.73,144.7,7.16168]
[1723543440022,26.9095,144.73,144.7,0.25098]
[1723543440222,6.9103,144.71,144.69,0.12549]
[1723543440432,6.9103,144.71,144.69,45.12549]
[1723543440831,6.9099,144.72,144.69,45.12549]
[1723543441032,26.9094,144.73,144.69,52.03659]
[1723543441346,26.9094,144.73,144.65,16.4408]
[1723543441347,32.12,144.72,144.65,33.7232]
[1723543441514,6.9118,144.68,144.65,33.7232]
[1723543441724,6.9115,144.69,144.65,40.6364]
[1723543442525,6.9115,144.69,144.61,34.5739]
[1723543442526,6.9124,144.67,144.63,13.1799]
[1723543442734,32.12,144.68,144.63,6.2658]
[1723543442923,32.12,144.66,144.59,7.4025388]
[1723543443123,32.12,144.68,144.61,17.2875]
[1723543443334,6.913,144.66,144.62,6.9143]
[1723543443531,6.9132,144.65,144.61,24.2024]
[1723543444139,6.9126,144.67,144.61,17.2875]
[1723543444343,20.0,144.66,144.63,24.1991]
[1723543444640,16.0518,144.71,144.63,24.1991]
[1723543444641,6.9123,144.67,144.63,24.1991]
[1723543444878,6.9127,144.66,144.62,6.9143]
[1723543445055,6.913,144.66,144.62,6.9145]
[1723543445340,6.9124,144.67,144.64,0.12549]
[1723543445542,32.12,144.68,144.64,0.12549]
[1723543445856,44.4393328,144.74,144.66,17.2816]
[1723543446018,6.9102,144.72,144.68,6.9116]
[1723543446353,6.9115,144.69,144.66,17.2816]
[1723543446518,32.12,144.72,144.67,45.0]
[1723543446719,44.4393328,144.74,144.68,0.25098]
[1723543446944,19.2285328,144.74,144.7,6.9108]
[1723543447247,32.12,144.72,144.68,0.12549]
[1723543447420,32.12,144.72,144.67,45.0]
[1723543447626,6.9116,144.69,144.67,45.0]
[1723543447844,6.9116,144.69,144.65,40.2641]
[1723543448022,6.9109,144.7,144.66,7.03809]
[1723543448430,6.9105,144.71,144.67,0.25098]
[1723543448634,6.911,144.7,144.67,0.25098]
[1723543449955,6.9113,144.69,144.66,45.0]
[1723543450243,6.911,144.7,144.66,51.9127]
[1723543450450,32.12,144.72,144.67,0.12549]
[1723543450742,20.0,144.71,144.68,6.9117]
[1723543450950,26.9104,144.71,144.67,24.31799]
[1723543451348,26.9104,144.71,144.67,17.40589]
[1723543451532,68.51842766,144.76,144.69,17.278]
[1723543451738,6.9104,144.71,144.68,0.12549]
[1723543451941,32.12,144.74,144.67,0.37647]
[1723543452147,20.0,144.73,144.67,0.37647]
[1723543452447,20.0,144.73,144.67,0.25098]
[1723543452651,32.12,144.7,144.61,21.8323]
[1723543452850,6.9125,144.67,144.63,6.9138]
[1723543453221,32.93962878,144.66,144.59,18.1092388]
[1723543453450,32.12,144.66,144.59,0.8200388]
[1723543453659,15.8769,144.68,144.59,0.8200388]
[1723543453660,15.8769,144.68,144.61,17.2868]
[1723543453843,6.9133,144.65,144.61,24.2016]
[1723543454862,17.2809,144.67,144.59,0.8200388]
[1723543455049,6.9142,144.63,144.59,7.7357388]
[1723543455547,49.4037,144.65,144.59,0.8200388]
[1723543455755,6.9148,144.62,144.59,0.8200388]
[1723543456256,40.24,144.62,144.59,0.8200388]
[1723543456851,6.9155,144.61,144.59,0.8200388]
[1723543457045,6.9156,144.6,144.59,0.8200388]
[1723543457330,6.9153,144.61,144.59,0.8200388]
[1723543457738,6.9156,144.6,144.59,0.8200388]
[1723543458138,6.9152,144.61,144.59,0.8200388]
[1723543458955,6.9156,144.6,144.59,0.8200388]
[1723543459933,40.24,144.62,144.59,0.8200388]
[1723543460262,6.9156,144.6,144.59,0.8200388]
[1723543460431,26.9156,144.6,144.59,0.8200388]
[1723543461130,20.0,144.6,144.59,0.8200388]
[1723543461533,6.9156,144.6,144.59,0.8200388]
[1723543462657,40.24,144.62,144.59,0.8200388]
[1723543462831,20.0,144.61,144.59,0.8200388]
[1723543463032,43.00556691,144.66,144.59,0.8200388]
[1723543463326,6.9154,144.61,144.59,0.8200388]
[1723543463740,6.9156,144.6,144.59,0.8200388]
[1723543464066,6.9152,144.61,144.59,0.8200388]
[1723543464565,20.0,144.65,144.59,0.8200388]
[1723543464737,55.12963034,144.68,144.61,6.2219]
[1723543464937,6.9128,144.66,144.62,51.9143]
[1723543465237,52.41205307,144.68,144.61,6.2219]
[1723543465432,6.9126,144.67,144.63,6.9138]
[1723543465664,6.9129,144.66,144.62,24.32639]
[1723543465839,12.17205307,144.68,144.61,6.2219]
[1723543466159,12.17205307,144.68,144.62,45.0]
[1723543466352,29.45185307,144.68,144.62,45.0]
[1723543466548,6.913,144.66,144.62,51.9146]
[1723543466732,26.9132,144.65,144.62,45.0]
[1723543466930,6.9116,144.69,144.64,0.12549]
[1723543467137,40.24,144.71,144.64,45.0]
[1723543467439,6.9141,144.64,144.62,45.12549]
[1723543467632,6.9141,144.63,144.62,45.0]
[1723543467834,0.81962878,144.66,144.61,6.2219]
[1723543468034,6.9145,144.63,144.61,6.2219]
[1723543468263,6.9138,144.64,144.61,6.2219]
[1723543468448,40.24,144.67,144.61,6.2219]
[1723543468629,6.9128,144.66,144.62,51.9146]
[1723543468833,26.9128,144.66,144.62,51.9146]
[1723543469057,6.9133,144.65,144.62,45.0]
[1723543469255,6.9137,144.64,144.62,45.0]
[1723543470151,6.9132,144.65,144.62,45.0]
[1723543470361,20.0,144.66,144.64,6.9136]
[1723543470555,6.9121,144.68,144.64,6.9136]
[1723543470757,40.24,144.71,144.62,62.2864]
[1723543471067,6.9115,144.69,144.65,6.9132]
[1723543471358,6.9109,144.7,144.66,52.16338]
[1723543471561,52.47477967,144.73,144.66,62.53258]
[1723543471771,12.23477967,144.73,144.67,0.12549]
[1723543472067,6.9106,144.71,144.67,7.03739]
[1723543472245,6.91,144.72,144.68,51.9118]
[1723543472439,6.91,144.72,144.68,6.9118]
[1723543472643,6.9104,144.71,144.67,7.03759]
[1723543472954,6.9097,144.73,144.69,7.03679]
[1723543473142,6.909,144.74,144.7,51.9108]
[1723543473465,6.909,144.74,144.7,6.9108]
[1723543473769,6.9097,144.73,144.71,45.0]
[1723543474141,6.9097,144.73,144.7,45.0]
[1723543474950,6.9091,144.74,144.7,45.0]
[1723543475454,40.24,144.77,144.7,45.0]
[1723543475762,40.24,144.79,144.72,6.9097]
[1723543476069,84.84202605,144.81,144.73,7.03469]
[1723543476236,84.84202605,144.81,144.74,45.0]
[1723543476237,72.5603,144.81,144.74,45.0]
[1723543476437,6.9078,144.77,144.74,45.0]
[1723543476633,17.2677,144.78,144.73,45.0]
[1723543476943,6.909,144.74,144.71,0.12549]
[1723543477139,6.909,144.74,144.71,45.25098]
[1723543477340,40.24,144.79,144.72,0.12549]
[1723543477645,6.9086,144.75,144.71,62.52658]
[1723543477862,6.9091,144.74,144.71,45.25098]
[1723543478869,40.24,144.77,144.71,45.0]
[1723543478870,6.9097,144.73,144.71,45.0]
[1723543479039,6.9097,144.73,144.7,45.12549]
[1723543479369,6.909,144.74,144.7,52.03619]
[1723543480467,6.9086,144.75,144.7,52.03619]
[1723543480674,6.9086,144.75,144.71,6.9103]
[1723543480849,6.9089,144.74,144.7,52.03619]
[1723543481545,6.9094,144.73,144.7,45.12549]
[1723543481743,6.909,144.74,144.7,52.03629]
[1723543482761,6.9099,144.72,144.68,30.3975]
[1723543483275,40.24,144.75,144.68,23.4859]
[1723543483450,20.0,144.74,144.68,23.4859]
[1723543483641,26.9092,144.74,144.7,6.9108]
[1723543485048,6.9094,144.73,144.71,45.0]
[1723543485662,26.909,144.74,144.71,45.0]
[1723543486056,26.909,144.74,144.71,51.9103]
[1723543486470,20.0,144.74,144.71,51.9103]
[1723543486762,26.9089,144.74,144.71,45.0]
[1723543488056,6.9094,144.73,144.71,45.0]
[1723543488554,20.0,144.74,144.69,0.25098]
[1723543488877,26.9092,144.74,144.7,6.9104]
[1723543489043,6.9092,144.74,144.71,45.0]
[1723543489550,6.9098,144.72,144.71,45.0]
[1723543489754,32.14,144.74,144.68,6.2073]
[1723543490065,6.9111,144.7,144.68,6.2073]
[1723543490260,6.9113,144.69,144.66,39.8391]
[1723543490463,6.9113,144.69,144.66,32.9266]
[1723543490971,6.911,144.7,144.66,39.8393]
[1723543491171,32.14,144.72,144.66,15.6457]
[1723543491357,6.9122,144.67,144.66,15.6457]
[1723543491548,32.14,144.72,144.66,15.6457]
[1723543491549,6.9119,144.68,144.66,15.6457]
[1723543492164,6.9114,144.69,144.66,15.6457]
[1723543492557,6.911,144.7,144.66,22.5584]
[1723543492778,6.9101,144.72,144.68,6.9117]
[1723543492943,20.0,144.71,144.68,6.9117]
[1723543493146,26.9106,144.71,144.67,62.2806]
[1723543493577,20.0,144.71,144.68,6.9116]
[1723543494073,26.9104,144.71,144.68,6.9116]
[1723543494376,6.9108,144.7,144.67,45.0]
[1723543495379,6.9114,144.69,144.67,45.0]
[1723543495677,26.9108,144.71,144.67,51.9121]
[1723543495848,26.9103,144.71,144.68,6.9117]
[1723543496058,20.0,144.71,144.68,6.9117]
[1723543496357,6.9103,144.71,144.68,6.9117]
[1723543496551,6.9103,144.71,144.67,51.9121]
[1723543498079,6.9103,144.71,144.68,6.9117]
[1723543498280,6.9101,144.72,144.69,45.0]
[1723543498590,26.9095,144.73,144.69,51.9113]
[1723543498952,6.9099,144.72,144.69,51.9113]
[1723543499181,6.9092,144.74,144.7,7.03619]
[1723543499390,6.9094,144.73,144.71,45.0]
[1723543499596,6.9092,144.74,144.71,45.0]
[1723543500377,6.9086,144.75,144.72,0.12549]
[1723543500550,6.9081,144.76,144.72,7.28597]
[1723543500754,6.9081,144.76,144.73,45.0]
[1723543500983,61.59965368,144.78,144.73,45.0]
[1723543501190,6.9088,144.75,144.72,0.12549]
[1723543501496,6.9088,144.75,144.72,45.25098]
[1723543502490,44.33115368,144.78,144.72,45.25098]
[1723543502697,6.908,144.76,144.72,52.16038]
[1723543502894,20.0,144.77,144.72,45.25098]
[1723543503183,6.9086,144.75,144.72,45.25098]
[1723543503390,6.9089,144.74,144.72,45.25098]
[1723543503569,6.9094,144.73,144.72,45.12549]
[1723543503771,6.909,144.74,144.72,45.0]
[1723543504796,6.9085,144.75,144.72,45.0]
[1723543504966,6.9089,144.74,144.72,45.0]
[1723543505362,20.0,144.77,144.73,0.12549]
[1723543505695,20.0,144.77,144.74,6.9089]
[1723543505890,20.0,144.77,144.75,45.0]
[1723543506763,26.9076,144.77,144.75,45.0]
[1723543506963,26.9076,144.77,144.73,7.41116]
[1723543506964,6.9081,144.76,144.73,0.37647]
[1723543507186,26.9076,144.77,144.73,52.28567]
[1723543509797,6.908,144.76,144.73,45.37647]
[1723543511774,6.908,144.76,144.73,52.28577]
[1723543511969,26.9077,144.77,144.73,52.28577]
[1723543512772,15.8469,144.81,144.73,52.28577]
[1723543512773,49.4035,144.82,144.76,0.12549]
[1723543513080,6.9041,144.84,144.8,6.906]
[1723543513395,32.14,144.85,144.79,17.2658]
[1723543513577,32.14,144.85,144.78,0.12549]
[1723543513772,32.14,144.85,144.78,45.37647]
[1723543514675,20.0,144.84,144.78,45.37647]
[1723543514891,6.9045,144.84,144.8,6.906]
[1723543515097,32.14,144.85,144.81,45.0]
[1723543515399,32.14,144.87,144.81,0.12549]
[1723543515605,6.9046,144.83,144.81,45.0]
[1723543515897,32.14,144.83,144.79,0.12549]
[1723543516098,6.9057,144.81,144.79,0.25098]
[1723543516280,6.9052,144.82,144.79,0.25098]
[1723543516482,6.9057,144.81,144.79,0.25098]
[1723543516713,6.9065,144.79,144.78,61.11618]
[1723543516879,6.9065,144.79,144.77,6.66019]
[1723543516880,6.907,144.78,144.77,6.5347]
[1723543517195,6.9066,144.79,144.77,6.5347]
[1723543517806,6.9076,144.77,144.75,15.652]
[1723543517972,6.9071,144.78,144.75,15.652]
[1723543518985,32.14,144.81,144.77,6.9073]
[1723543519193,20.0,144.8,144.79,6.9065]
[1723543519394,32.14,144.85,144.8,7.03119]
[1723543519587,49.3972,144.87,144.8,0.12549]
[1723543519795,32.14,144.87,144.8,62.64107]
[1723543519979,6.9037,144.85,144.81,6.9054]
[1723543520502,6.9042,144.84,144.8,31.10417]
[1723543520679,6.9037,144.85,144.81,51.9054]
[1723543521276,6.9041,144.84,144.81,45.0]
[1723543522903,6.9046,144.83,144.81,45.0]
[1723543523077,6.9051,144.82,144.81,45.0]
[1723543523285,32.14,144.83,144.77,17.2679]
[1723543523485,32.14,144.83,144.76,6.4601]
[1723543523694,6.9068,144.79,144.76,6.4601]
[1723543524514,6.9062,144.8,144.76,13.368]
[1723543525213,6.9065,144.79,144.76,6.4601]